[Event "Kadrioru MK Open A"]
[Site "Tallinn, Paul Keres Chess House, Estonia"]
[Date "2023.02.10"]
[Round "1.1"]
[White "Akhvedliani, Irakli"]
[Black "Zafra, Kim"]
[Result "1/2-1/2"]
[TimeControl "90 minutes with 30 second increment from move 1"]
[WhiteTitle "FM"]
[WhiteElo "2420"]
[BlackElo "1686"]

1. d4 {

[%clk 01:30:50]

} {

[%emt 00:00:09]

} Nf6 {

[%clk 01:30:56]

} {

[%emt 00:00:05]

} 2. c4 {

[%clk 01:31:15]

} {

[%emt 00:00:05]

} g6 {

[%clk 01:30:58]

} {

[%emt 00:00:28]

} 3. Nc3 {

[%clk 01:31:33]

} {

[%emt 00:00:12]

} Bg7 {

[%clk 01:31:20]

} {

[%emt 00:00:08]

} 4. e4 {

[%clk 01:31:58]

} {

[%emt 00:00:05]

} d6 {

[%clk 01:31:45]

} {

[%emt 00:00:05]

} 5. Nf3 {

[%clk 01:31:58]

} {

[%emt 00:00:29]

} Bg4 {

[%clk 01:32:13]

} {

[%emt 00:00:02]

} 6. Be2 {

[%clk 01:31:55]

} {

[%emt 00:00:33]

} O-O {

[%clk 01:32:32]

} {

[%emt 00:00:11]

} 7. Be3 {

[%clk 01:31:51]

} {

[%emt 00:00:35]

} Nc6 {

[%clk 01:32:29]

} {

[%emt 00:00:33]

} 8. d5 {

[%clk 01:31:44]

} {

[%emt 00:00:37]

} Bxf3 {

[%clk 01:24:50]

} {

[%emt 00:08:08]

} 9. Bxf3 {

[%clk 01:29:02]

} {

[%emt 00:03:12]

} Na5 {

[%clk 01:25:02]

} {

[%emt 00:00:19]

} 10. Be2 {

[%clk 01:28:32]

} {

[%emt 00:01:00]

} b6 {

[%clk 01:25:14]

} {

[%emt 00:00:18]

} 11. O-O {

[%clk 01:27:13]

} {

[%emt 00:01:48]

} Nd7 {

[%clk 01:21:27]

} {

[%emt 00:04:17]

} 12. Qd2 {

[%clk 01:26:10]

} {

[%emt 00:01:34]

} e5 {

[%clk 01:13:17]

} {

[%emt 00:08:40]

} 13. b4 {

[%clk 01:24:47]

} {

[%emt 00:01:53]

} Nb7 {

[%clk 01:12:55]

} {

[%emt 00:00:52]

} 14. Rfc1 {

[%clk 01:24:52]

} {

[%emt 00:00:24]

} f5 {

[%clk 01:11:53]

} {

[%emt 00:01:33]

} 15. f3 {

[%clk 01:24:40]

} {

[%emt 00:00:41]

} Rf7 {

[%clk 01:09:50]

} {

[%emt 00:02:33]

} 16. Na4 {

[%clk 01:19:45]

} {

[%emt 00:05:26]

} Bf8 {

[%clk 01:09:52]

} {

[%emt 00:00:28]

} 17. a3 {

[%clk 01:02:55]

} {

[%emt 00:17:20]

} Qe8 {

[%clk 01:06:05]

} {

[%emt 00:04:17]

} 18. Nc3 {

[%clk 00:51:45]

} {

[%emt 00:11:41]

} f4 {

[%clk 01:05:15]

} {

[%emt 00:01:19]

} 19. Bf2 {

[%clk 00:52:04]

} {

[%emt 00:00:11]

} g5 {

[%clk 01:03:53]

} {

[%emt 00:01:51]

} 20. g4 {

[%clk 00:52:01]

} {

[%emt 00:00:34]

} h5 {

[%clk 01:03:24]

} {

[%emt 00:00:57]

} 21. h3 {

[%clk 00:49:23]

} {

[%emt 00:03:10]

} Rh7 {

[%clk 00:58:43]

} {

[%emt 00:05:11]

} 22. Kg2 {

[%clk 00:47:19]

} {

[%emt 00:02:33]

} Qg6 {

[%clk 00:57:59]

} {

[%emt 00:01:14]

} 23. c5 {

[%clk 00:40:48]

} {

[%emt 00:07:01]

} dxc5 {

[%clk 00:55:44]

} {

[%emt 00:02:45]

} 24. d6 {

[%clk 00:36:29]

} {

[%emt 00:04:49]

} Qxd6 {

[%clk 00:55:39]

} {

[%emt 00:00:34]

} 25. Bc4+ {

[%clk 00:26:03]

} {

[%emt 00:10:57]

} Kh8 {

[%clk 00:54:31]

} {

[%emt 00:01:38]

} 26. Qd5 {

[%clk 00:26:18]

} {

[%emt 00:00:15]

} Qxd5 {

[%clk 00:53:46]

} {

[%emt 00:01:15]

} 27. Bxd5 {

[%clk 00:26:38]

} {

[%emt 00:00:11]

} Rb8 {

[%clk 00:53:24]

} {

[%emt 00:00:52]

} 28. Nb5 {

[%clk 00:26:11]

} {

[%emt 00:00:56]

} Nf6 {

[%clk 00:52:44]

} {

[%emt 00:01:10]

} 29. Nxa7 {

[%clk 00:16:20]

} {

[%emt 00:10:22]

} Nxd5 {

[%clk 00:51:23]

} {

[%emt 00:01:50]

} 30. exd5 {

[%clk 00:16:48]

} {

[%emt 00:00:02]

} Rd7 {

[%clk 00:40:57]

} {

[%emt 00:10:55]

} 31. Rd1 {

[%clk 00:12:30]

} {

[%emt 00:04:50]

} Re8 {

[%clk 00:40:50]

} {

[%emt 00:00:36]

} 32. Nc6 {

[%clk 00:12:49]

} {

[%emt 00:00:12]

} Bg7 {

[%clk 00:34:50]

} {

[%emt 00:06:30]

} 33. Rac1 {

[%clk 00:12:45]

} {

[%emt 00:00:34]

} cxb4 {

[%clk 00:34:04]

} {

[%emt 00:01:16]

} 34. axb4 {

[%clk 00:13:12]

} {

[%emt 00:00:02]

} Nd6 {

[%clk 00:31:20]

} {

[%emt 00:03:14]

} 35. gxh5 {

[%clk 00:10:22]

} {

[%emt 00:03:20]

} Kh7 {

[%clk 00:27:22]

} {

[%emt 00:04:27]

} 36. Re1 {

[%clk 00:03:45]

} {

[%emt 00:07:08]

} Kh6 {

[%clk 00:26:43]

} {

[%emt 00:01:10]

} 37. Rcd1 {

[%clk 00:01:46]

} {

[%emt 00:02:29]

} Kxh5 {

[%clk 00:25:52]

} {

[%emt 00:01:20]

} 38. Re2 {

[%clk 00:00:34]

} {

[%emt 00:01:42]

} Rf7 {

[%clk 00:22:13]

} {

[%emt 00:04:09]

} 39. Rd3 {

[%clk 00:00:34]

} {

[%emt 00:00:30]

} e4 {

[%clk 00:16:56]

} {

[%emt 00:05:48]

} 40. fxe4 {

[%clk 00:01:03]

} g4 {

[%clk 00:16:14]

} {

[%emt 00:01:11]

} 41. hxg4+ {

[%clk 00:01:21]

} {

[%emt 00:00:12]

} Kxg4 {

[%clk 00:16:42]

} {

[%emt 00:00:01]

} 42. Rf3 {

[%clk 00:00:31]

} {

[%emt 00:01:20]

} Nxe4 {

[%clk 00:12:53]

} {

[%emt 00:04:19]

} 43. Re1 {

[%clk 00:00:32]

} {

[%emt 00:00:30]

} Rf5 {

[%clk 00:06:27]

} {

[%emt 00:06:55]

} 44. Rh1 {

[%clk 00:00:31]

} {

[%emt 00:00:30]

} Bf6 {

[%clk 00:02:15]

} {

[%emt 00:04:42]

} 45. Rd1 {

[%clk 00:00:31]

} {

[%emt 00:00:30]

} Rh8 {

[%clk 00:01:58]

} {

[%emt 00:00:45]

} 46. Bg1 {

[%clk 00:00:37]

} {

[%emt 00:00:25]

} Rg5 {

[%clk 00:01:43]

} {

[%emt 00:00:45]

} 47. Nd4 {

[%clk 00:00:31]

} {

[%emt 00:00:36]

} Rxd5 {

[%clk 00:00:53]

} {

[%emt 00:01:20]

} 48. Rfd3 {

[%clk 00:00:33]

} {

[%emt 00:00:28]

} Bxd4 {

[%clk 00:01:05]

} {

[%emt 00:00:17]

} 49. Rxd4 {

[%clk 00:00:37]

} {

[%emt 00:00:26]

} Rxd4 {

[%clk 00:01:20]

} {

[%emt 00:00:15]

} 50. Rxd4 {

[%clk 00:01:05]

} {

[%emt 00:00:02]

} f3+ {

[%clk 00:01:34]

} {

[%emt 00:00:16]

} 51. Kf1 {

[%clk 00:01:34]

} {

[%emt 00:00:01]

} Kf4 {

[%clk 00:01:37]

} {

[%emt 00:00:27]

} 52. Rd7 {

[%clk 00:00:53]

} {

[%emt 00:01:11]

} Rh5 {

[%clk 00:00:53]

} {

[%emt 00:01:12]

} 53. Rxc7 {

[%clk 00:00:38]

} {

[%emt 00:00:46]

} f2 {

[%clk 00:00:47]

} {

[%emt 00:00:36]

} 54. Bxf2 {

[%clk 00:00:51]

} {

[%emt 00:00:17]

} Nxf2 {

[%clk 00:01:00]

} {

[%emt 00:00:17]

} 55. Kxf2 {

[%clk 00:01:16]

} {

[%emt 00:00:04]

} Rh2+ {

[%clk 00:01:25]

} {

[%emt 00:00:05]

} 56. Ke1 {

[%clk 00:01:45]

} {

[%emt 00:00:02]

} Rb2 {

[%clk 00:01:39]

} {

[%emt 00:00:16]

} 57. Kd1 {

[%clk 00:01:37]

} {

[%emt 00:00:39]

} Ke3 {

[%clk 00:01:48]

} {

[%emt 00:00:20]

} 58. Kc1 {

[%clk 00:01:53]

} {

[%emt 00:00:14]

} Rxb4 {

[%clk 00:02:16]

} {

[%emt 00:00:02]

} 59. Kc2 {

[%clk 00:02:13]

} {

[%emt 00:00:10]

} Kd4 {

[%clk 00:01:55]

} {

[%emt 00:00:51]

} 60. Rh7 {

[%clk 00:02:40]

} {

[%emt 00:00:03]

} Kc4 {

[%clk 00:02:11]

} {

[%emt 00:00:13]

} 61. Rh5 {

[%clk 00:03:03]

} {

[%emt 00:00:08]

} Rb5 {

[%clk 00:01:29]

} {

[%emt 00:01:12]

} 62. Rxb5 {

[%clk 00:03:19]

} {

[%emt 00:00:14]

} Kxb5 {

[%emt 00:00:04]

} 1/2-1/2

[Event "Kadrioru MK Open A"]
[Site "Tallinn, Paul Keres Chess House, Estonia"]
[Date "2023.02.10"]
[Round "1.2"]
[White "Jibuti, Nata"]
[Black "Shvyrjov, Igor"]
[Result "0-1"]
[TimeControl "90 minutes with 30 second increment from move 1"]
[WhiteTitle "WFM"]
[BlackTitle "GM"]
[WhiteElo "1654"]
[BlackElo "2369"]

1. e4 {

[%clk 01:30:57]

} g6 {

[%clk 01:31:00]

} 2. d4 {

[%clk 01:31:16]

} {

[%emt 00:00:12]

} Bg7 {

[%clk 01:31:28]

} 3. Nf3 {

[%clk 01:30:19]

} {

[%emt 00:01:26]

} d6 {

[%clk 01:31:57]

} {

[%emt 00:00:01]

} 4. Bd3 {

[%clk 01:30:13]

} {

[%emt 00:00:36]

} Bg4 {

[%clk 01:32:15]

} {

[%emt 00:00:13]

} 5. c3 {

[%clk 01:30:28]

} {

[%emt 00:00:16]

} c6 {

[%clk 01:32:21]

} {

[%emt 00:00:22]

} 6. h3 {

[%clk 01:29:56]

} {

[%emt 00:01:02]

} Bxf3 {

[%clk 01:32:49]

} {

[%emt 00:00:02]

} 7. Qxf3 {

[%clk 01:30:18]

} {

[%emt 00:00:07]

} Nd7 {

[%clk 01:33:05]

} {

[%emt 00:00:14]

} 8. Be3 {

[%clk 01:24:36]

} {

[%emt 00:06:12]

} Ngf6 {

[%clk 01:33:33]

} {

[%emt 00:00:02]

} 9. Nd2 {

[%clk 01:23:35]

} {

[%emt 00:01:32]

} O-O {

[%clk 01:34:00]

} {

[%emt 00:00:03]

} 10. O-O {

[%clk 01:18:29]

} {

[%emt 00:05:35]

} e5 {

[%clk 01:34:25]

} {

[%emt 00:00:05]

} 11. Rad1 {

[%clk 01:12:01]

} {

[%emt 00:06:58]

} Qe7 {

[%clk 01:34:53]

} {

[%emt 00:00:03]

} 12. Qe2 {

[%clk 01:10:20]

} {

[%emt 00:02:11]

} Nh5 {

[%clk 01:34:39]

} {

[%emt 00:00:43]

} 13. dxe5 {

[%clk 01:04:21]

} {

[%emt 00:06:29]

} dxe5 {

[%clk 01:35:03]

} {

[%emt 00:00:06]

} 14. Bb1 {

[%clk 01:01:38]

} {

[%emt 00:03:12]

} b5 {

[%clk 01:35:15]

} {

[%emt 00:00:19]

} 15. Nf3 {

[%clk 00:54:56]

} {

[%emt 00:07:12]

} Nc5 {

[%clk 01:34:49]

} {

[%emt 00:00:56]

} 16. Rd2 {

[%clk 00:46:30]

} {

[%emt 00:08:56]

} h6 {

[%clk 01:33:21]

} {

[%emt 00:01:58]

} 17. Rfd1 {

[%clk 00:43:10]

} {

[%emt 00:03:50]

} Nf4 {

[%clk 01:33:48]

} {

[%emt 00:00:04]

} 18. Bxf4 {

[%clk 00:34:40]

} {

[%emt 00:09:00]

} exf4 {

[%clk 01:34:14]

} {

[%emt 00:00:03]

} 19. Nd4 {

[%clk 00:33:38]

} {

[%emt 00:01:32]

} Qc7 {

[%clk 01:33:56]

} {

[%emt 00:00:49]

} 20. Nb3 {

[%clk 00:30:05]

} {

[%emt 00:04:03]

} Na4 {

[%clk 01:33:45]

} {

[%emt 00:00:40]

} 21. Rd7 {

[%clk 00:23:03]

} {

[%emt 00:07:31]

} Qb6 {

[%clk 01:32:34]

} {

[%emt 00:01:42]

} 22. Qd2 {

[%clk 00:16:09]

} {

[%emt 00:07:24]

} Be5 {

[%clk 01:33:02]

} {

[%emt 00:00:02]

} 23. a3 {

[%clk 00:09:30]

} {

[%emt 00:07:10]

} a5 {

[%clk 01:33:15]

} {

[%emt 00:00:17]

} 24. Qc2 {

[%clk 00:01:52]

} {

[%emt 00:08:07]

} b4 {

[%clk 01:31:51]

} {

[%emt 00:01:54]

} 25. cxb4 {

[%clk 00:01:39]

} {

[%emt 00:00:43]

} axb4 {

[%clk 01:32:00]

} {

[%emt 00:00:20]

} 26. axb4 {

[%clk 00:01:54]

} {

[%emt 00:00:15]

} Nxb2 {

[%clk 01:31:29]

} {

[%emt 00:01:02]

} 27. R1d2 {

[%clk 00:01:57]

} {

[%emt 00:00:26]

} Qxb4 {

[%clk 01:31:37]

} {

[%emt 00:00:23]

} 28. Nd4 {

[%clk 00:01:39]

} {

[%emt 00:00:49]

} Nc4 {

[%clk 01:25:40]

} {

[%emt 00:06:27]

} 29. Nxc6 {

[%clk 00:01:31]

} {

[%emt 00:00:38]

} Qb5 {

[%clk 01:26:05]

} {

[%emt 00:00:05]

} 30. Ne7+ {

[%clk 00:01:44]

} {

[%emt 00:00:17]

} Kg7 {

[%clk 01:25:59]

} {

[%emt 00:00:36]

} 31. R2d5 {

[%clk 00:01:23]

} {

[%emt 00:00:51]

} Qb4 {

[%clk 01:21:29]

} {

[%emt 00:05:00]

} 32. Kh2 {

[%clk 00:01:03]

} {

[%emt 00:00:49]

} f3+ {

[%clk 01:20:16]

} {

[%emt 00:01:44]

} 33. g3 {

[%clk 00:01:27]

} {

[%emt 00:00:06]

} Ne3 {

[%clk 01:05:46]

} {

[%emt 00:14:59]

} 34. fxe3 {

[%clk 00:01:13]

} {

[%emt 00:00:43]

} Qe1 {

[%clk 01:06:11]

} {

[%emt 00:00:06]

} 35. Rxe5 {

[%clk 00:00:44]

} {

[%emt 00:01:00]

} Qe2+ {

[%clk 01:06:17]

} {

[%emt 00:00:23]

} 36. Kh1 {

[%clk 00:00:39]

} {

[%emt 00:00:35]

} Qe1+ {

[%clk 00:57:47]

} {

[%emt 00:09:00]

} 37. Kh2 {

[%clk 00:01:05]

} {

[%emt 00:00:04]

} f2 {

[%clk 00:58:01]

} {

[%emt 00:00:17]

} 38. Rd1 {

[%clk 00:01:10]

} {

[%emt 00:00:25]

} f1=N+ {

[%clk 00:58:12]

} {

[%emt 00:00:19]

} 39. Kh1 {

[%clk 00:00:58]

} {

[%emt 00:00:42]

} Nxg3+ {

[%clk 00:54:32]

} {

[%emt 00:04:09]

} 40. Kg2 {

[%clk 00:01:14]

} {

[%emt 00:00:14]

} Qxe3 {

[%emt 00:00:04]

} 41. Qf2 {

[%clk 00:00:40]

} {

[%emt 00:01:01]

} Qb3 {

[%clk 00:53:55]

} {

[%emt 00:01:37]

} 42. Red5 {

[%clk 00:00:47]

} {

[%emt 00:00:22]

} Nh5 {

[%clk 00:54:09]

} {

[%emt 00:00:16]

} 43. R5d3 {

[%clk 00:00:46]

} {

[%emt 00:00:31]

} Qe6 {

[%clk 00:54:25]

} {

[%emt 00:00:15]

} 44. Nd5 {

[%clk 00:01:00]

} {

[%emt 00:00:16]

} Qxe4+ {

[%clk 00:54:28]

} {

[%emt 00:00:27]

} 45. Rf3 {

[%clk 00:01:23]

} {

[%emt 00:00:06]

} Qe5 {

[%clk 00:54:46]

} {

[%emt 00:00:13]

} 46. Qd4 {

[%clk 00:00:47]

} {

[%emt 00:01:05]

} Qxd4 {

[%clk 00:53:46]

} {

[%emt 00:01:30]

} 47. Rxd4 {

[%clk 00:01:15]

} {

[%emt 00:00:02]

} Rab8 {

[%clk 00:54:09]

} {

[%emt 00:00:07]

} 48. Rd1 {

[%clk 00:00:47]

} {

[%emt 00:00:58]

} Rfd8 {

[%clk 00:54:33]

} {

[%emt 00:00:07]

} 49. Rfd3 {

[%clk 00:00:43]

} {

[%emt 00:00:33]

} Rxd5 {

[%clk 00:55:00]

} {

[%emt 00:00:04]

} 50. Rxd5 {

[%clk 00:00:45]

} {

[%emt 00:00:28]

} Nf4+ {

[%clk 00:55:29]

} 51. Kf3 {

[%clk 00:00:46]

} {

[%emt 00:00:29]

} Nxd5 {

[%clk 00:55:58]

} {

[%emt 00:00:01]

} 52. Bxg6 {

[%clk 00:00:53]

} {

[%emt 00:00:22]

} Rb3+ {

[%clk 00:54:58]

} {

[%emt 00:01:30]

} 53. Rd3 {

[%clk 00:00:44]

} {

[%emt 00:00:39]

} Rxd3+ {

[%clk 00:55:10]

} {

[%emt 00:00:18]

} 54. Bxd3 {

[%clk 00:01:10]

} {

[%emt 00:00:03]

} Kf6 {

[%clk 00:55:36]

} {

[%emt 00:00:05]

} 55. Bc4 {

[%clk 00:00:48]

} {

[%emt 00:00:52]

} Ke5 {

[%clk 00:55:50]

} {

[%emt 00:00:16]

} 56. Bb3 {

[%clk 00:00:50]

} {

[%emt 00:00:28]

} f5 {

[%clk 00:56:14]

} {

[%emt 00:00:07]

} 57. Bc4 {

[%clk 00:00:53]

} {

[%emt 00:00:27]

} Nf6 {

[%clk 00:56:28]

} {

[%emt 00:00:15]

} 58. Bf1 {

[%clk 00:01:03]

} {

[%emt 00:00:20]

} Ne4 {

[%clk 00:56:51]

} {

[%emt 00:00:08]

} 59. Ba6 {

[%clk 00:00:47]

} {

[%emt 00:00:46]

} h5 {

[%clk 00:57:09]

} {

[%emt 00:00:12]

} 60. Bb7 {

[%clk 00:00:53]

} {

[%emt 00:00:24]

} h4 {

[%clk 00:57:24]

} {

[%emt 00:00:15]

} 61. Ba8 {

[%clk 00:00:57]

} {

[%emt 00:00:27]

} Ng5+ {

[%clk 00:57:44]

} {

[%emt 00:00:09]

} 62. Kg2 {

[%clk 00:01:22]

} {

[%emt 00:00:05]

} Kf4 {

[%clk 00:58:08]

} {

[%emt 00:00:07]

} 63. Bc6 {

[%clk 00:01:16]

} {

[%emt 00:00:36]

} Ke3 {

[%clk 00:58:31]

} {

[%emt 00:00:06]

} 64. Bd7 {

[%clk 00:01:07]

} {

[%emt 00:00:40]

} f4 {

[%clk 00:59:00]

} {

[%emt 00:00:01]

} 65. Bg4 {

[%clk 00:01:01]

} {

[%emt 00:00:35]

} f3+ {

[%clk 00:59:25]

} {

[%emt 00:00:05]

} 66. Kf1 {

[%clk 00:01:20]

} {

[%emt 00:00:10]

} Ne4 {

[%clk 00:59:40]

} {

[%emt 00:00:16]

} 0-1

[Event "Kadrioru MK Open A"]
[Site "Tallinn, Paul Keres Chess House, Estonia"]
[Date "2023.02.10"]
[Round "1.3"]
[White "Jezov, Roman"]
[Black "Rajandu, Aaron"]
[Result "1/2-1/2"]
[TimeControl "90 minutes with 30 second increment from move 1"]
[WhiteTitle "FM"]
[WhiteElo "2262"]
[BlackElo "1539"]

1. e4 {

[%clk 01:30:58]

} c6 {

[%clk 01:30:53]

} {

[%emt 00:00:07]

} 2. d4 {

[%clk 01:31:20]

} {

[%emt 00:00:07]

} d5 {

[%clk 01:31:16]

} {

[%emt 00:00:08]

} 3. Nc3 {

[%clk 01:31:39]

} {

[%emt 00:00:11]

} dxe4 {

[%clk 01:31:41]

} {

[%emt 00:00:05]

} 4. Nxe4 {

[%clk 01:32:03]

} {

[%emt 00:00:04]

} Nf6 {

[%clk 01:31:53]

} {

[%emt 00:00:19]

} 5. Nxf6+ {

[%clk 01:32:03]

} {

[%emt 00:00:31]

} exf6 {

[%clk 01:32:12]

} {

[%emt 00:00:10]

} 6. c3 {

[%clk 01:31:56]

} {

[%emt 00:00:36]

} Bd6 {

[%clk 01:30:11]

} {

[%emt 00:02:31]

} 7. Bd3 {

[%clk 01:31:53]

} {

[%emt 00:00:36]

} O-O {

[%clk 01:29:53]

} {

[%emt 00:00:46]

} 8. Qc2 {

[%clk 01:31:59]

} {

[%emt 00:00:23]

} h5 {

[%clk 01:29:52]

} {

[%emt 00:00:32]

} 9. Ne2 {

[%clk 01:31:31]

} {

[%emt 00:00:58]

} Re8 {

[%clk 01:28:34]

} {

[%emt 00:01:48]

} 10. Be3 {

[%clk 01:30:32]

} {

[%emt 00:01:29]

} Nd7 {

[%clk 01:21:58]

} {

[%emt 00:07:06]

} 11. O-O-O {

[%clk 01:28:58]

} {

[%emt 00:02:03]

} Nf8 {

[%clk 01:19:55]

} {

[%emt 00:02:33]

} 12. h3 {

[%clk 01:17:56]

} {

[%emt 00:11:33]

} Be6 {

[%clk 01:08:47]

} {

[%emt 00:11:38]

} 13. g4 {

[%clk 01:09:12]

} {

[%emt 00:09:13]

} h4 {

[%clk 01:05:22]

} {

[%emt 00:03:54]

} 14. c4 {

[%clk 01:06:36]

} {

[%emt 00:03:07]

} Qa5 {

[%clk 01:00:03]

} {

[%emt 00:05:49]

} 15. Kb1 {

[%clk 01:03:47]

} {

[%emt 00:03:19]

} b5 {

[%clk 00:58:13]

} {

[%emt 00:02:20]

} 16. d5 {

[%clk 00:59:05]

} {

[%emt 00:05:13]

} cxd5 {

[%clk 00:51:39]

} {

[%emt 00:07:04]

} 17. cxd5 {

[%clk 00:59:18]

} {

[%emt 00:00:17]

} Bxd5 {

[%clk 00:50:57]

} {

[%emt 00:01:11]

} 18. Bh7+ {

[%clk 00:59:41]

} {

[%emt 00:00:06]

} Nxh7 {

[%clk 00:51:18]

} {

[%emt 00:00:09]

} 19. Rxd5 {

[%clk 01:00:08]

} {

[%emt 00:00:04]

} Be5 {

[%clk 00:46:39]

} {

[%emt 00:05:09]

} 20. Qb3 {

[%clk 00:59:09]

} {

[%emt 00:01:29]

} Qa4 {

[%clk 00:43:31]

} {

[%emt 00:03:37]

} 21. Nd4 {

[%clk 00:48:22]

} {

[%emt 00:11:18]

} Bxd4 {

[%clk 00:32:12]

} {

[%emt 00:11:49]

} 22. Qxa4 {

[%clk 00:48:18]

} {

[%emt 00:00:35]

} bxa4 {

[%clk 00:32:28]

} {

[%emt 00:00:14]

} 23. Rxd4 {

[%clk 00:48:45]

} {

[%emt 00:00:04]

} a3 {

[%clk 00:30:28]

} {

[%emt 00:02:29]

} 24. b3 {

[%clk 00:46:52]

} {

[%emt 00:02:22]

} a5 {

[%clk 00:28:01]

} {

[%emt 00:02:57]

} 25. Ra4 {

[%clk 00:46:49]

} {

[%emt 00:00:34]

} Ng5 {

[%clk 00:28:07]

} {

[%emt 00:00:24]

} 26. Rxa3 {

[%clk 00:46:44]

} {

[%emt 00:00:35]

} Re4 {

[%clk 00:23:33]

} {

[%emt 00:05:03]

} 27. Kb2 {

[%clk 00:43:36]

} {

[%emt 00:03:39]

} Nf3 {

[%clk 00:19:49]

} {

[%emt 00:04:14]

} 28. Rd1 {

[%clk 00:41:49]

} {

[%emt 00:02:17]

} Ng5 {

[%clk 00:17:54]

} {

[%emt 00:02:26]

} 29. Rh1 {

[%clk 00:41:26]

} {

[%emt 00:00:52]

} Nf3 {

[%clk 00:18:01]

} {

[%emt 00:00:24]

} 30. Rd1 {

[%clk 00:41:04]

} {

[%emt 00:00:52]

} Ng5 {

[%clk 00:17:32]

} {

[%emt 00:00:59]

} 31. Rh1 {

[%clk 00:25:13]

} {

[%emt 00:16:21]

} 1/2-1/2